[Event "*** Titled Tuesday Blitz"]
[Site "Chess.com"]
[Date "2021.03.02"]
[Round "2"]
[White "DamianoLew95"]
[Black "Chandradi"]
[Result "0-1"]
[WhiteElo "2584"]
[BlackElo "2335"]
[TimeControl "180+1"]
[EndTime "10:17:27 PST"]
[Termination "Chandradi won by resignation"]

1. d4 {[%clk 0:03:00.9]} 1... Nf6 {[%clk 0:02:59.7]} 2. Bf4 {[%clk 0:02:59.9]}
2... g6 {[%clk 0:02:58.2]} 3. Nc3 {[%clk 0:02:58.6]} 3... d5 {[%clk 0:02:57.1]}
4. e3 {[%clk 0:02:58.6]} 4... Bg7 {[%clk 0:02:57.1]} 5. h4 {[%clk 0:02:58.9]}
5... h5 {[%clk 0:02:55.3]} 6. Nf3 {[%clk 0:02:58]} 6... Bg4 {[%clk 0:02:54.6]}
7. Be2 {[%clk 0:02:54.9]} 7... c6 {[%clk 0:02:51]} 8. Qd2 {[%clk 0:02:50.7]}
8... Nbd7 {[%clk 0:02:48.2]} 9. Ne5 {[%clk 0:02:48.1]} 9... Bxe2 {[%clk
0:02:47]} 10. Qxe2 {[%clk 0:02:38.7]} 10... Nxe5 {[%clk 0:02:46.8]} 11. Bxe5
{[%clk 0:02:38.3]} 11... Rc8 {[%clk 0:02:40.8]} 12. O-O-O {[%clk 0:02:31.2]}
12... Qa5 {[%clk 0:02:39.7]} 13. Kb1 {[%clk 0:02:27.3]} 13... O-O {[%clk
0:02:32.4]} 14. f3 {[%clk 0:01:59.4]} 14... c5 {[%clk 0:02:31.5]} 15. Bxf6
{[%clk 0:01:26.7]} 15... exf6 {[%clk 0:02:29.2]} 16. Nxd5 {[%clk 0:01:26.3]}
16... Kh8 {[%clk 0:02:14.9]} 17. dxc5 {[%clk 0:01:14.6]} 17... Rxc5 {[%clk
0:02:13.8]} 18. b4 {[%clk 0:01:06.7]} 18... Rb5 {[%clk 0:02:13.8]} 19. c4 {[%clk
0:00:59.7]} 19... Rxb4+ {[%clk 0:02:10.2]} 20. Nxb4 {[%clk 0:00:58.9]} 20...
Qxb4+ {[%clk 0:02:11.1]} 21. Qb2 {[%clk 0:00:57]} 21... Qxc4 {[%clk 0:02:10.8]}
22. Qb3 {[%clk 0:00:57]} 22... Qe2 {[%clk 0:02:07.9]} 23. g4 {[%clk 0:00:29.3]}
23... Qxf3 {[%clk 0:02:01.7]} 24. gxh5 {[%clk 0:00:27]} 24... Qxh5 {[%clk
0:02:02.6]} 25. Qd5 {[%clk 0:00:24.7]} 25... f5 {[%clk 0:01:57.7]} 26. Qg2
{[%clk 0:00:17.3]} 26... Bf6 {[%clk 0:01:55]} 27. Rd2 {[%clk 0:00:15.8]} 27...
Kh7 {[%clk 0:01:49.3]} 28. Qe2 {[%clk 0:00:16.3]} 28... Qxe2 {[%clk 0:01:25.2]}
29. Rxe2 {[%clk 0:00:17.2]} 29... Kg7 {[%clk 0:01:23.3]} 30. Rd2 {[%clk
0:00:17.1]} 30... Rh8 {[%clk 0:01:21.4]} 31. Rd7 {[%clk 0:00:16.2]} 31... Bxh4
{[%clk 0:01:15.7]} 32. Rxb7 {[%clk 0:00:15.2]} 32... g5 {[%clk 0:01:15.7]} 33.
Rxa7 {[%clk 0:00:15.1]} 33... Rb8+ {[%clk 0:01:15.4]} 34. Kc2 {[%clk 0:00:14.5]}
34... Bf2 {[%clk 0:01:13.8]} 35. Kd3 {[%clk 0:00:13.9]} 35... Re8 {[%clk
0:01:09.8]} 36. Ra6 {[%clk 0:00:03.6]} 36... Bxe3 {[%clk 0:01:05.6]} 37. Rah6
{[%clk 0:00:02.8]} 37... g4 {[%clk 0:01:04.3]} 38. Rh7+ {[%clk 0:00:02.2]} 38...
Kf6 {[%clk 0:01:04.6]} 39. Rh8 {[%clk 0:00:03.1]} 39... Re7 {[%clk 0:00:56.1]}
40. a4 {[%clk 0:00:03.4]} 40... g3 {[%clk 0:00:54.3]} 41. a5 {[%clk 0:00:03.5]}
41... g2 {[%clk 0:00:54]} 42. a6 {[%clk 0:00:02.7]} 0-1

[Event "*** Titled Tuesday Blitz"]
[Site "Chess.com"]
[Date "2021.03.02"]
[Round "2"]
[White "TimKett"]
[Black "manitodeplomo"]
[Result "0-1"]
[WhiteElo "2183"]
[BlackElo "2611"]
[TimeControl "180+1"]
[EndTime "10:17:29 PST"]
[Termination "manitodeplomo won by checkmate"]

1. e4 {[%clk 0:03:00.9]} 1... g6 {[%clk 0:02:56.9]} 2. d4 {[%clk 0:02:59.8]}
2... Bg7 {[%clk 0:02:57.2]} 3. Nc3 {[%clk 0:03:00.3]} 3... c5 {[%clk 0:02:57.7]}
4. d5 {[%clk 0:02:57.9]} 4... d6 {[%clk 0:02:57.5]} 5. f4 {[%clk 0:02:56.7]}
5... Nf6 {[%clk 0:02:55.9]} 6. Bb5+ {[%clk 0:02:56.2]} 6... Nfd7 {[%clk
0:02:54.8]} 7. a4 {[%clk 0:02:52.7]} 7... O-O {[%clk 0:02:55]} 8. Nf3 {[%clk
0:02:51.8]} 8... Na6 {[%clk 0:02:42.4]} 9. O-O {[%clk 0:02:50.5]} 9... Nb4
{[%clk 0:02:42.8]} 10. f5 {[%clk 0:02:12.8]} 10... Nf6 {[%clk 0:02:16]} 11. fxg6
{[%clk 0:01:58.4]} 11... hxg6 {[%clk 0:02:15.1]} 12. Bg5 {[%clk 0:01:42.8]}
12... e6 {[%clk 0:02:11.2]} 13. Qe1 {[%clk 0:01:13.4]} 13... exd5 {[%clk
0:01:37.6]} 14. Qh4 {[%clk 0:01:13.3]} 14... c4 {[%clk 0:01:02.4]} 15. exd5
{[%clk 0:00:44]} 15... a6 {[%clk 0:00:48]} 16. Ne4 {[%clk 0:00:39.5]} 16... Qb6+
{[%clk 0:00:47]} 17. Kh1 {[%clk 0:00:38.9]} 17... Nxe4 {[%clk 0:00:46.6]} 18.
Qxe4 {[%clk 0:00:32.5]} 18... axb5 {[%clk 0:00:43.8]} 19. Nh4 {[%clk 0:00:17.5]}
19... Rxa4 {[%clk 0:00:30.1]} 20. Rxa4 {[%clk 0:00:15.5]} 20... bxa4 {[%clk
0:00:29.8]} 21. Nxg6 {[%clk 0:00:12.2]} 21... fxg6 {[%clk 0:00:26.4]} 22. Rxf8+
{[%clk 0:00:11.8]} 22... Kxf8 {[%clk 0:00:22.4]} 23. Qe7+ {[%clk 0:00:07.3]}
23... Kg8 {[%clk 0:00:22.3]} 24. Qe8+ {[%clk 0:00:07.1]} 24... Kh7 {[%clk
0:00:22.4]} 25. Qxc8 {[%clk 0:00:05.6]} 25... Qf2 {[%clk 0:00:21.3]} 26. h4
{[%clk 0:00:04.7]} 26... Qf1+ {[%clk 0:00:20.4]} 27. Kh2 {[%clk 0:00:03.2]}
27... Be5+ {[%clk 0:00:20.3]} 28. g3 {[%clk 0:00:02.8]} 28... Qf2+ {[%clk
0:00:20.1]} 29. Kh1 {[%clk 0:00:02.9]} 29... Qe1+ {[%clk 0:00:19.6]} 30. Kh2
{[%clk 0:00:02.5]} 30... Qxg3+ {[%clk 0:00:19.4]} 31. Kh1 {[%clk 0:00:02.6]}
31... Qh2# {[%clk 0:00:19.7]} 0-1

[Event "*** Titled Tuesday Blitz"]
[Site "Chess.com"]
[Date "2021.03.02"]
[Round "2"]
[White "dachessmandan"]
[Black "katchesskat"]
[Result "1-0"]
[WhiteElo "2481"]
[BlackElo "2285"]
[TimeControl "180+1"]
[EndTime "10:17:32 PST"]
[Termination "dachessmandan won on time"]

1. d4 {[%clk 0:03:00.9]} 1... c5 {[%clk 0:02:27.3]} 2. d5 {[%clk 0:02:59.2]}
2... e5 {[%clk 0:02:27]} 3. e4 {[%clk 0:02:54]} 3... a6 {[%clk 0:02:27.1]} 4. c4
{[%clk 0:02:48.6]} 4... d6 {[%clk 0:02:26.8]} 5. Nc3 {[%clk 0:02:48.9]} 5... Ne7
{[%clk 0:02:26.2]} 6. f4 {[%clk 0:02:48.8]} 6... exf4 {[%clk 0:02:26]} 7. Bxf4
{[%clk 0:02:48]} 7... Ng6 {[%clk 0:02:26.6]} 8. Bg3 {[%clk 0:02:40.5]} 8... Be7
{[%clk 0:02:26.6]} 9. Nf3 {[%clk 0:02:39.7]} 9... Bg4 {[%clk 0:02:26.9]} 10. Be2
{[%clk 0:02:30.2]} 10... Bxf3 {[%clk 0:02:26.8]} 11. Bxf3 {[%clk 0:02:26]} 11...
O-O {[%clk 0:02:26]} 12. O-O {[%clk 0:02:23.8]} 12... Bh4 {[%clk 0:02:25.7]} 13.
Qe1 {[%clk 0:02:23.2]} 13... Nd7 {[%clk 0:02:22.4]} 14. a3 {[%clk 0:02:13.4]}
14... Nde5 {[%clk 0:02:22]} 15. b3 {[%clk 0:02:04.7]} 15... Nd3 {[%clk
0:02:17.1]} 16. Qe3 {[%clk 0:01:58.4]} 16... Bxg3 {[%clk 0:02:13.9]} 17. hxg3
{[%clk 0:01:54.2]} 17... Nde5 {[%clk 0:02:10]} 18. Ne2 {[%clk 0:01:51.4]} 18...
b5 {[%clk 0:02:06.8]} 19. Rac1 {[%clk 0:01:33.8]} 19... Rb8 {[%clk 0:02:05.5]}
20. Nf4 {[%clk 0:01:33.3]} 20... Qg5 {[%clk 0:02:04.8]} 21. Be2 {[%clk
0:01:21.8]} 21... Rfe8 {[%clk 0:01:56.8]} 22. cxb5 {[%clk 0:01:17.8]} 22... axb5
{[%clk 0:01:56.3]} 23. a4 {[%clk 0:01:18.5]} 23... bxa4 {[%clk 0:01:54.8]} 24.
bxa4 {[%clk 0:01:19.4]} 24... Rb2 {[%clk 0:01:54.7]} 25. Bb5 {[%clk 0:01:15]}
25... Re7 {[%clk 0:01:18.6]} 26. Qc3 {[%clk 0:01:12.2]} 26... Ra2 {[%clk
0:00:53.5]} 27. Ra1 {[%clk 0:01:11.9]} 27... Nxf4 {[%clk 0:00:43]} 28. Rxa2
{[%clk 0:01:08.8]} 28... Nh5 {[%clk 0:00:18.6]} 29. a5 {[%clk 0:01:08.2]} 29...
Nxg3 {[%clk 0:00:16.6]} 30. a6 {[%clk 0:01:07.8]} 30... Nxf1 {[%clk 0:00:16.3]}
31. a7 {[%clk 0:01:05.5]} 31... Rxa7 {[%clk 0:00:14.9]} 32. Rxa7 {[%clk
0:01:04.8]} 32... h5 {[%clk 0:00:13.3]} 33. Bxf1 {[%clk 0:01:04.4]} 33... Ng4
{[%clk 0:00:12.5]} 34. Ra8+ {[%clk 0:01:00.4]} 34... Kh7 {[%clk 0:00:12.3]} 35.
Qf3 {[%clk 0:00:47.2]} 35... Qh4 {[%clk 0:00:11.5]} 36. Qf5+ {[%clk 0:00:45.7]}
36... g6 {[%clk 0:00:03.3]} 37. Qxf7+ {[%clk 0:00:44.2]} 37... Kh6 {[%clk
0:00:03.7]} 38. Qf4+ {[%clk 0:00:35.2]} 1-0

[Event "*** Titled Tuesday Blitz"]
[Site "Chess.com"]
[Date "2021.03.02"]
[Round "2"]
[White "ural58"]
[Black "Heretoflag"]
[Result "1-0"]
[WhiteElo "2527"]
[BlackElo "2296"]
[TimeControl "180+1"]
[EndTime "10:17:35 PST"]
[Termination "ural58 won on time"]

1. e4 {[%clk 0:02:56]} 1... c6 {[%clk 0:02:57.5]} 2. b3 {[%clk 0:02:12.1]} 2...
d5 {[%clk 0:02:58.4]} 3. Qe2 {[%clk 0:02:11.7]} 3... dxe4 {[%clk 0:02:31]} 4.
Nc3 {[%clk 0:02:08.8]} 4... Nf6 {[%clk 0:02:29.3]} 5. Nxe4 {[%clk 0:01:48.1]}
5... Nxe4 {[%clk 0:02:27.2]} 6. Qxe4 {[%clk 0:01:49]} 6... Nd7 {[%clk
0:02:26.4]} 7. Bb2 {[%clk 0:01:44.2]} 7... Nf6 {[%clk 0:02:24.3]} 8. Qe5 {[%clk
0:01:44]} 8... Qd5 {[%clk 0:02:13.9]} 9. Nf3 {[%clk 0:01:40.7]} 9... Qxe5+
{[%clk 0:02:02.6]} 10. Nxe5 {[%clk 0:01:40.1]} 10... Bf5 {[%clk 0:02:02.4]} 11.
O-O-O {[%clk 0:01:39.1]} 11... e6 {[%clk 0:01:59.2]} 12. Be2 {[%clk 0:01:36.7]}
12... Nd7 {[%clk 0:01:56.2]} 13. Nc4 {[%clk 0:01:33.9]} 13... O-O-O {[%clk
0:01:42.8]} 14. g4 {[%clk 0:01:29.8]} 14... Bg6 {[%clk 0:01:41.3]} 15. f4 {[%clk
0:01:29.4]} 15... h5 {[%clk 0:01:20.6]} 16. g5 {[%clk 0:01:29.4]} 16... Rg8
{[%clk 0:01:10.4]} 17. Bf3 {[%clk 0:01:26.9]} 17... Kc7 {[%clk 0:01:04.3]} 18.
h4 {[%clk 0:01:19.1]} 18... b5 {[%clk 0:00:33.1]} 19. Na5 {[%clk 0:01:08]} 19...
Nb8 {[%clk 0:00:32.5]} 20. Be5+ {[%clk 0:01:07.5]} 20... Bd6 {[%clk 0:00:31.9]}
21. d4 {[%clk 0:00:48.6]} 21... Kb6 {[%clk 0:00:14.2]} 22. Bxd6 {[%clk
0:00:45.1]} 22... Rxd6 {[%clk 0:00:15.1]} 23. b4 {[%clk 0:00:45.8]} 23... Rgd8
{[%clk 0:00:13.8]} 24. c3 {[%clk 0:00:45.5]} 24... Na6 {[%clk 0:00:06.7]} 25.
Rhe1 {[%clk 0:00:29]} 25... Nc7 {[%clk 0:00:06.4]} 26. c4 {[%clk 0:00:20.6]}
26... Rxd4 {[%clk 0:00:03.2]} 27. c5+ {[%clk 0:00:21.5]} 27... Ka6 {[%clk
0:00:03.1]} 28. Rxd4 {[%clk 0:00:20.8]} 28... Rxd4 {[%clk 0:00:02.7]} 29. Nxc6
{[%clk 0:00:21.7]} 29... Rxf4 {[%clk 0:00:02.1]} 30. Be2 {[%clk 0:00:19.8]} 1-0

[Event "*** Titled Tuesday Blitz"]
[Site "Chess.com"]
[Date "2021.03.02"]
[Round "2"]
[White "TeukkaSalama"]
[Black "mamonika"]
[Result "1-0"]
[WhiteElo "2369"]
[BlackElo "2012"]
[TimeControl "180+1"]
[EndTime "10:17:35 PST"]
[Termination "TeukkaSalama won on time"]

1. d4 {[%clk 0:03:00.9]} 1... d5 {[%clk 0:02:53.8]} 2. Bf4 {[%clk 0:03:00.7]}
2... Nf6 {[%clk 0:02:53.5]} 3. e3 {[%clk 0:03:00.8]} 3... e6 {[%clk 0:02:53.4]}
4. Nf3 {[%clk 0:03:00.1]} 4... c5 {[%clk 0:02:53.4]} 5. c3 {[%clk 0:03:00.2]}
5... Nc6 {[%clk 0:02:53.6]} 6. Nbd2 {[%clk 0:03:00.4]} 6... cxd4 {[%clk
0:02:52.7]} 7. exd4 {[%clk 0:03:00.2]} 7... Bd6 {[%clk 0:02:50.2]} 8. Bg3 {[%clk
0:02:59.6]} 8... O-O {[%clk 0:02:41.2]} 9. Bd3 {[%clk 0:02:59.6]} 9... Re8
{[%clk 0:02:23.7]} 10. Ne5 {[%clk 0:02:59.3]} 10... Qc7 {[%clk 0:02:20.2]} 11.
f4 {[%clk 0:02:56.6]} 11... a6 {[%clk 0:02:08.9]} 12. O-O {[%clk 0:02:55.6]}
12... b5 {[%clk 0:02:08.5]} 13. Bh4 {[%clk 0:02:55.2]} 13... Be7 {[%clk
0:01:52.7]} 14. Bxf6 {[%clk 0:02:54.5]} 14... Bxf6 {[%clk 0:01:52.8]} 15. Rf3
{[%clk 0:02:51]} 15... h6 {[%clk 0:01:45.9]} 16. Rh3 {[%clk 0:02:46.7]} 16... b4
{[%clk 0:01:30.3]} 17. Qg4 {[%clk 0:02:44.1]} 17... Nxe5 {[%clk 0:01:23.2]} 18.
fxe5 {[%clk 0:02:42.7]} 18... Bg5 {[%clk 0:01:23.4]} 19. Rd1 {[%clk 0:02:12.9]}
19... bxc3 {[%clk 0:01:22.8]} 20. bxc3 {[%clk 0:02:13.7]} 20... Rb8 {[%clk
0:01:13.1]} 21. Rg3 {[%clk 0:01:58.4]} 21... f5 {[%clk 0:00:41.3]} 22. exf6
{[%clk 0:01:59.3]} 22... e5 {[%clk 0:00:41.6]} 23. Bf5 {[%clk 0:01:32.2]} 23...
Bxf6 {[%clk 0:00:29.1]} 24. Qg6 {[%clk 0:01:13.6]} 24... Bxf5 {[%clk 0:00:28]}
25. Qxf6 {[%clk 0:01:13.8]} 25... Bc2 {[%clk 0:00:13.6]} 26. Rf1 {[%clk
0:01:08]} 26... exd4 {[%clk 0:00:05.5]} 27. cxd4 {[%clk 0:00:58.8]} 27... Rb6
{[%clk 0:00:05.5]} 28. Qf3 {[%clk 0:00:30]} 28... Be4 {[%clk 0:00:05.1]} 29. Qh5
{[%clk 0:00:25.8]} 29... Rbe6 {[%clk 0:00:02.2]} 30. Qg4 {[%clk 0:00:20.8]}
30... Kh7 {[%clk 0:00:01.9]} 31. Nb3 {[%clk 0:00:18.7]} 1-0

[Event "*** Titled Tuesday Blitz"]
[Site "Chess.com"]
[Date "2021.03.02"]
[Round "2"]
[White "Volodar_Murzin"]
[Black "Gogolev_Artemy"]
[Result "1-0"]
[WhiteElo "2698"]
[BlackElo "2481"]
[TimeControl "180+1"]
[EndTime "10:17:36 PST"]
[Termination "Volodar_Murzin won by resignation"]

1. e4 {[%clk 0:03:00.9]} 1... c5 {[%clk 0:02:54]} 2. Nf3 {[%clk 0:02:56.1]} 2...
Nf6 {[%clk 0:02:49.5]} 3. e5 {[%clk 0:02:53.4]} 3... Nd5 {[%clk 0:02:43.9]} 4.
Nc3 {[%clk 0:02:52.9]} 4... Nxc3 {[%clk 0:02:12.3]} 5. bxc3 {[%clk 0:02:52.2]}
5... d5 {[%clk 0:02:10.7]} 6. d4 {[%clk 0:02:42.9]} 6... Nc6 {[%clk 0:02:09.3]}
7. Be3 {[%clk 0:02:35]} 7... Bg4 {[%clk 0:02:07.7]} 8. Be2 {[%clk 0:02:24.4]}
8... e6 {[%clk 0:02:07.1]} 9. O-O {[%clk 0:02:23.8]} 9... Be7 {[%clk 0:02:05.1]}
10. h3 {[%clk 0:02:23.8]} 10... Bxf3 {[%clk 0:02:04.1]} 11. Bxf3 {[%clk
0:02:23.8]} 11... cxd4 {[%clk 0:02:03.2]} 12. cxd4 {[%clk 0:02:23.9]} 12... Na5
{[%clk 0:02:03]} 13. Be2 {[%clk 0:02:21.7]} 13... O-O {[%clk 0:02:02.2]} 14. Rb1
{[%clk 0:02:08.3]} 14... Rc8 {[%clk 0:02:01.2]} 15. Bd3 {[%clk 0:02:04.9]} 15...
b6 {[%clk 0:01:52.3]} 16. f4 {[%clk 0:02:02.6]} 16... Nc4 {[%clk 0:01:52]} 17.
Bc1 {[%clk 0:02:00.4]} 17... f5 {[%clk 0:01:50.4]} 18. exf6 {[%clk 0:01:53.7]}
18... Bxf6 {[%clk 0:01:49.7]} 19. c3 {[%clk 0:01:53.9]} 19... Nd6 {[%clk
0:01:42.8]} 20. Bd2 {[%clk 0:01:49.1]} 20... Qd7 {[%clk 0:01:28]} 21. Qe2 {[%clk
0:01:46.1]} 21... Nc4 {[%clk 0:01:24.3]} 22. Be1 {[%clk 0:01:45.8]} 22... Rfe8
{[%clk 0:01:18.7]} 23. g4 {[%clk 0:01:45]} 23... g6 {[%clk 0:01:13.3]} 24. Bg3
{[%clk 0:01:40.1]} 24... Bg7 {[%clk 0:01:06.1]} 25. Kh2 {[%clk 0:01:38.5]} 25...
Rc6 {[%clk 0:00:58.1]} 26. h4 {[%clk 0:01:10.3]} 26... Nd6 {[%clk 0:00:55.5]}
27. Be1 {[%clk 0:00:58.7]} 27... Qd8 {[%clk 0:00:45.3]} 28. h5 {[%clk
0:00:53.9]} 28... gxh5 {[%clk 0:00:43]} 29. g5 {[%clk 0:00:52.8]} 29... Ne4
{[%clk 0:00:34.1]} 30. Qxh5 {[%clk 0:00:42.2]} 30... Rf8 {[%clk 0:00:26.9]} 31.
Rb2 {[%clk 0:00:24]} 31... Qe8 {[%clk 0:00:23.9]} 32. Qh4 {[%clk 0:00:17.1]}
32... Nxc3 {[%clk 0:00:19.1]} 33. Qxh7+ {[%clk 0:00:15]} 33... Kf7 {[%clk
0:00:18.1]} 34. Bg6+ {[%clk 0:00:15.5]} 34... Ke7 {[%clk 0:00:18.7]} 35. Bxe8
{[%clk 0:00:16.2]} 35... Rh8 {[%clk 0:00:18.4]} 36. Qxh8 {[%clk 0:00:16]} 36...
Bxh8 {[%clk 0:00:19.3]} 37. Bxc6 {[%clk 0:00:16.6]} 1-0

[Event "*** Titled Tuesday Blitz"]
[Site "Chess.com"]
[Date "2021.03.02"]
[Round "2"]
[White "Bongcloudtransvestit"]
[Black "Berardino"]
[Result "0-1"]
[WhiteElo "2305"]
[BlackElo "2565"]
[TimeControl "180+1"]
[EndTime "10:17:36 PST"]
[Termination "Berardino won by resignation"]

1. c4 {[%clk 0:02:57.6]} 1... e6 {[%clk 0:02:57.4]} 2. Nf3 {[%clk 0:02:57.4]}
2... d5 {[%clk 0:02:57.5]} 3. b3 {[%clk 0:02:57.8]} 3... Nf6 {[%clk 0:02:55.1]}
4. Bb2 {[%clk 0:02:58.2]} 4... Be7 {[%clk 0:02:55.7]} 5. e3 {[%clk 0:02:58.4]}
5... O-O {[%clk 0:02:56.2]} 6. d3 {[%clk 0:02:57.8]} 6... b6 {[%clk 0:02:56.2]}
7. Nbd2 {[%clk 0:02:57.1]} 7... Bb7 {[%clk 0:02:56.6]} 8. a3 {[%clk 0:02:54]}
8... c5 {[%clk 0:02:57]} 9. cxd5 {[%clk 0:02:52]} 9... Nxd5 {[%clk 0:02:54.4]}
10. Qc2 {[%clk 0:02:49]} 10... Bf6 {[%clk 0:02:54.2]} 11. Be2 {[%clk 0:02:47.7]}
11... Nc6 {[%clk 0:02:52.8]} 12. O-O {[%clk 0:02:46.1]} 12... Rc8 {[%clk
0:02:53.2]} 13. Rac1 {[%clk 0:02:45]} 13... Qe7 {[%clk 0:02:45.2]} 14. Rfe1
{[%clk 0:02:43.5]} 14... Rfd8 {[%clk 0:02:45.4]} 15. Qb1 {[%clk 0:02:43.6]}
15... Bxb2 {[%clk 0:02:42.8]} 16. Qxb2 {[%clk 0:02:44.5]} 16... e5 {[%clk
0:02:42.6]} 17. Ne4 {[%clk 0:02:32.4]} 17... Kh8 {[%clk 0:02:22.7]} 18. Ng3
{[%clk 0:02:31.7]} 18... f6 {[%clk 0:02:12.5]} 19. Bf1 {[%clk 0:02:07.3]} 19...
Qe6 {[%clk 0:01:58.7]} 20. Qb1 {[%clk 0:01:44.9]} 20... Re8 {[%clk 0:01:46.7]}
21. Ne4 {[%clk 0:01:23.5]} 21... f5 {[%clk 0:01:35]} 22. Ned2 {[%clk 0:01:21.8]}
22... Nf6 {[%clk 0:01:26.5]} 23. b4 {[%clk 0:01:10.1]} 23... e4 {[%clk 0:01:25]}
24. dxe4 {[%clk 0:01:03.8]} 24... fxe4 {[%clk 0:01:25.9]} 25. Ng5 {[%clk
0:01:00.5]} 25... Qd5 {[%clk 0:01:15]} 26. h4 {[%clk 0:00:39.3]} 26... Ne5
{[%clk 0:00:48.9]} 27. Nc4 {[%clk 0:00:35.3]} 27... Nd3 {[%clk 0:00:43.1]} 28.
Red1 {[%clk 0:00:27.9]} 28... h6 {[%clk 0:00:38.3]} 29. Nh3 {[%clk 0:00:25.9]}
29... cxb4 {[%clk 0:00:32.5]} 30. axb4 {[%clk 0:00:23.9]} 30... Rxc4 {[%clk
0:00:31.7]} 31. Rxc4 {[%clk 0:00:16.7]} 31... Qxc4 {[%clk 0:00:30.8]} 32. Nf4
{[%clk 0:00:17.6]} 32... Qf7 {[%clk 0:00:23.7]} 33. Nxd3 {[%clk 0:00:16.1]}
33... exd3 {[%clk 0:00:23.7]} 34. Bxd3 {[%clk 0:00:16.7]} 34... Ne4 {[%clk
0:00:21.5]} 35. b5 {[%clk 0:00:13.1]} 35... Qxf2+ {[%clk 0:00:20.3]} 0-1

[Event "*** Titled Tuesday Blitz"]
[Site "Chess.com"]
[Date "2021.03.02"]
[Round "2"]
[White "kubal123"]
[Black "c_r_e_e_p_e_r"]
[Result "0-1"]
[WhiteElo "2203"]
[BlackElo "2425"]
[TimeControl "180+1"]
[EndTime "10:17:36 PST"]
[Termination "c_r_e_e_p_e_r won by resignation"]

1. d4 {[%clk 0:03:00.9]} 1... Nf6 {[%clk 0:02:59.5]} 2. c4 {[%clk 0:03:00.4]}
2... g6 {[%clk 0:03:00]} 3. Nc3 {[%clk 0:02:59.7]} 3... Bg7 {[%clk 0:03:00.7]}
4. e4 {[%clk 0:02:59.7]} 4... O-O {[%clk 0:03:01.4]} 5. h4 {[%clk 0:02:59.4]}
5... h5 {[%clk 0:03:00.4]} 6. Bg5 {[%clk 0:02:58.8]} 6... d6 {[%clk 0:02:59.2]}
7. f3 {[%clk 0:02:58.7]} 7... Nc6 {[%clk 0:02:53.4]} 8. Be2 {[%clk 0:02:49.1]}
8... e5 {[%clk 0:02:52.6]} 9. d5 {[%clk 0:02:48.9]} 9... Nd4 {[%clk 0:02:52.6]}
10. Bd3 {[%clk 0:02:49.2]} 10... c5 {[%clk 0:02:49.9]} 11. dxc6 {[%clk 0:02:47]}
11... bxc6 {[%clk 0:02:49.6]} 12. Nge2 {[%clk 0:02:47.3]} 12... Ne6 {[%clk
0:02:45.4]} 13. Be3 {[%clk 0:02:35.2]} 13... Nd7 {[%clk 0:02:39.8]} 14. Bc2
{[%clk 0:02:26.6]} 14... Qe7 {[%clk 0:02:26.4]} 15. Qd2 {[%clk 0:02:22.5]} 15...
Rd8 {[%clk 0:02:19.2]} 16. g4 {[%clk 0:02:15.4]} 16... Nf6 {[%clk 0:02:10.2]}
17. Rg1 {[%clk 0:01:58]} 17... Nf4 {[%clk 0:01:57.8]} 18. g5 {[%clk 0:01:41.6]}
18... Nd7 {[%clk 0:01:31.4]} 19. Nxf4 {[%clk 0:01:41.9]} 19... exf4 {[%clk
0:01:31.7]} 20. Bxf4 {[%clk 0:01:42.8]} 20... Ne5 {[%clk 0:01:32.3]} 21. Bxe5
{[%clk 0:01:12.5]} 21... Qxe5 {[%clk 0:01:27.1]} 22. O-O-O {[%clk 0:01:06.5]}
22... Rb8 {[%clk 0:01:23.5]} 23. f4 {[%clk 0:01:05.7]} 23... Qa5 {[%clk
0:01:21.6]} 24. e5 {[%clk 0:00:51.3]} 24... Bg4 {[%clk 0:01:06.9]} 25. exd6
{[%clk 0:00:40.5]} 25... Bxd1 {[%clk 0:01:03.8]} 26. Rxd1 {[%clk 0:00:41.4]}
26... Qb4 {[%clk 0:00:40.9]} 27. Bb3 {[%clk 0:00:34.6]} 27... Bxc3 {[%clk
0:00:30.1]} 28. bxc3 {[%clk 0:00:35.5]} 28... Qa3+ {[%clk 0:00:28.8]} 29. Kc2
{[%clk 0:00:35.5]} 29... a5 {[%clk 0:00:22.5]} 30. Qc1 {[%clk 0:00:28.5]} 30...
Qc5 {[%clk 0:00:19.7]} 31. d7 {[%clk 0:00:22.6]} 31... Qf5+ {[%clk 0:00:14.1]}
32. Rd3 {[%clk 0:00:13.3]} 32... Rxd7 {[%clk 0:00:12.5]} 33. Qf1 {[%clk
0:00:12.3]} 33... Rbd8 {[%clk 0:00:10.7]} 0-1